[Event "Chinese League Division-A 2024"]
[Site "Fuling Chongqing"]
[Date "2024.07.03"]
[Round "7.5"]
[White "Wang, Qinxuanyi"]
[Black "Wang, Yu A."]
[Result "1/2-1/2"]
[ECO "E11"]
[WhiteElo "2149"]
[BlackElo "2234"]
[Annotator "RC"]
[PlyCount "60"]
[EventDate "2024.06.28"]
[EventType "team-tourn"]
[EventCountry "CHN"]
[SourceTitle "playchess.com"]
[Source "ChessBase"]
[SourceQuality "1"]
[TimeControl "40/5400+30:1800+30"]

1. d4 {[%emt 0:00:04]} Nf6 {[%emt 0:00:01]} 2. c4 {[%emt 0:00:07]} e6 {[%emt 0:00:03]} 3. Nf3 {[%emt 0:00:04]} Bb4+ {[%emt 0:00:03]} 4. Bd2 {[%emt 0:00:13]} a5 {[%emt 0:00:30]} 5. e3 {[%emt 0:00:30]} O-O {[%emt 0:00:30]} 6. Qc2 {[%emt 0:00:30]} d5 {[%emt 0:00:30]} 7. Bd3 {[%emt 0:00:30]} dxc4 {[%emt 0:20:51]} 8. Bxc4 {[%emt 0:07:12]} b6 {[%emt 0:00:45]} 9. a3 {[%emt 0:04:03]} Bxd2+ {[%emt 0:09:32]} 10. Nbxd2 {[%emt 0:00:17]} Nbd7 {[%emt 0:01:29]} 11. O-O {[%emt 0:01:30]} Bb7 {[%emt 0:01:24]} 12. e4 {[%emt 0:08:20]} c5 {[%emt 0:05:08]} 13. dxc5 {[%emt 0:09:10]} Nxc5 {[%emt 0:02:32]} 14. Rfe1 {[%emt 0:00:17]} Rc8 {[%emt 0:00:30]} 15. Rad1 {[%emt 0:00:30]} Qe7 {[%emt 0:06:39]} 16. e5 {[%emt 0:18:12]} Nd5 {[%emt 0:04:45]} 17. Qb1 {[%emt 0:01:32]} Rfd8 {[%emt 0:00:30]} 18. Ne4 {[%emt 0:00:30]} Nf4 {[%emt 0:00:30]} 19. Rxd8+ {[%emt 0:00:30]} Rxd8 {[%emt 0:00:30]} 20. Nfg5 {[%emt 0:00:30]} Nxe4 21. Nxe4 Rd4 {[%emt 0:23:26]} 22. Bf1 {[%emt 0:13:57]} Qd8 {[%emt 0:04:21]} 23. Qc2 {[%emt 0:07:42]} h6 {[%emt 0:04:04]} 24. f3 {[%emt 0:08:11]} Bxe4 {[%emt 0:04:27]} 25. Rxe4 {[%emt 0:01:02]} Rxe4 {[%emt 0:00:13]} 26. Qxe4 {[%emt 0:00:13]} Qd2 {[%emt 0:00:08]} 27. Qa8+ {[%emt 0:01:21]} Kh7 {[%emt 0:00:01]} 28. Qe4+ {[%emt 0:00:05]} Kg8 {[%emt 0:00:30]} 29. Qa8+ {[%emt 0:00:05]} Kh7 {[%emt 0:00:05]} 30. Qe4+ {[%emt 0:00:05]} Kg8 {[%emt 0:01:56]} 1/2-1/2

[Event "Chinese League Division-A 2024"]
[Site "Fuling Chongqing"]
[Date "2024.07.03"]
[Round "7.6"]
[White "Wang, Hao"]
[Black "Huang, Renjie"]
[Result "1-0"]
[ECO "A28"]
[WhiteElo "2702"]
[BlackElo "2480"]
[Annotator "TA"]
[PlyCount "103"]
[EventDate "2024.06.28"]
[EventType "team-tourn"]
[EventCountry "CHN"]
[SourceTitle "playchess.com"]
[Source "ChessBase"]
[SourceQuality "1"]
[TimeControl "40/5400+30:1800+30"]

{[%evp 34,103,25,25,25,0,33,26,28,0,21,19,30,35,79,81,88,16,46,54,47,57,84,42,63,61,91,76,72,50,90,83,106,106,82,54,201,112,97,95,116,75,89,89,123,90,163,172,172,137,495,487,502,502,502,502,502,502,844,847,803,840,665,825,1002,925,1389,1339,1613,1383,29970,29969]} 1. c4 {[%emt 0:00:03]} Nf6 {[%emt 0:00:36]} 2. Nc3 {[%emt 0:01:43]} e5 {[%emt 0:00:04]} 3. Nf3 {[%emt 0:03:54]} Nc6 {[%emt 0:00:17]} 4. e4 {[%emt 0:02:50]} Bb4 {[%emt 0:02:47]} 5. d3 {[%emt 0:00:08]} d6 {[%emt 0:01:13]} 6. a3 {[%emt 0:00:05] A28: English Opening: Four Knights Variation.} Bc5 {[%emt 0:02:06]} 7. b4 {[%emt 0:01:17]} Bb6 {[%emt 0:01:08]} 8. Na4 {[%emt 0:00:51]} Bg4 {[%emt 0:04:33]} 9. Nxb6 {[%emt 0:07:05]} Bxf3 {[%emt 0:03:37]} 10. Qxf3 {[%emt 0:04:21]} Nd4 {[%emt 0:01:35]} 11. Qd1 {[%emt 0:00:07]} axb6 {[%emt 0:00:04]} 12. g3 {[%emt 0:07:00]} Qd7 {[%emt 0:01:06]} 13. Be3 {[%emt 0:09:51]} c5 {[%emt 0:07:47]} 14. Bxd4 $146 {[%emt 0:13:56]} ({Predecessor:} 14. Bg2 O-O 15. O-O Ra4 16. Qb1 Rfa8 17. Qb2 b5 18. bxc5 dxc5 19. cxb5 R8a5 20. Bxd4 Rxb5 {0-1 Shivakumar,S (2387)-Bournel,A (2358) Zadar 2023 (4)}) 14... cxd4 {[%emt 0:00:41]} 15. h4 {[%emt 0:00:58]} O-O {[%emt 0:11:24]} 16. Bh3 {[%emt 0:00:10]} Qa4 {[%emt 0:00:13]} 17. Kd2 {[%emt 0:06:28]} Qc6 {[%emt 0:16:10]} 18. a4 {[%emt 0:02:23]} Ra7 {[%emt 0:00:50]} 19. Qc2 {[%emt 0:01:31]} Rfa8 {[%emt 0:00:43]} 20. Ra3 {[%emt 0:01:37]} (20. b5 Qc7 $11) 20... h5 {[%emt 0:03:15]} (20... Rxa4 $2 {perishes.} 21. b5 Rxa3 22. bxc6 bxc6 23. Rb1 $18) 21. f3 {[%emt 0:02:31]} g6 {[%emt 0:03:25]} 22. Rha1 {[%emt 0:01:35]} Kg7 {[%emt 0:00:12]} 23. Kc1 {[%emt 0:02:33]} Nd7 {[%emt 0:00:39]} 24. Kb2 {[%emt 0:00:20]} Nf6 {[%emt 0:00:52]} 25. Qb3 {[%emt 0:02:26]} ({White should try} 25. Kb3 $16) 25... Qc7 {[%emt 0:00:34]} 26. Qd1 $1 {[%emt 0:01:15]} Qe7 {[%emt 0:00:28]} 27. Qd2 {[%emt 0:00:27]} Nd7 {[%emt 0:00:20]} 28. Kb3 {[%emt 0:01:45]} Nb8 {[%emt 0:00:11]} 29. Qg5 {[%emt 0:04:00]} f6 {[%emt 0:03:20]} 30. Qd2 {[%emt 0:00:11]} Nc6 {[%emt 0:00:19]} 31. b5 {[%emt 0:08:25]} Nd8 {[%emt 0:00:26]} 32. f4 {[%emt 0:01:59]} Ne6 {[%emt 0:06:47]} 33. Bxe6 {[%emt 0:00:19]} Qxe6 {[%emt 0:00:02]} 34. Rf1 {[%emt 0:02:35]} f5 {[%emt 0:04:14]} (34... Qg4 $14) 35. Qe2 {[%emt 0:00:16]} (35. exf5 $18 Qxf5 36. Qe2) 35... Rf8 $16 {[%emt 0:05:03]} 36. Raa1 {[%emt 0:02:51]} Raa8 {[%emt 0:02:27]} 37. exf5 {[%emt 0:03:53]} Rxf5 {[%emt 0:01:02] [#]} 38. fxe5 $1 {[%emt 0:00:08]} Rxe5 {[%emt 0:06:47] [#]} 39. Qb2 $1 {[%emt 0:00:05]} Re3 {[%emt 0:00:08]} (39... d5 $16 40. Qxd4 Rd8) 40. Qxd4+ $18 {[%emt 0:00:00]} Qe5 {[%emt 0:00:00]} 41. Rf4 {[%emt 0:06:29]} (41. Qxb6 {gets mated.} Rxd3+ 42. Kc2 Qe2+ (42... Rxg3 {leads to mate.} 43. Qxb7+ Kh6 44. Qd5 Qc3+ 45. Kd1 Rd3+ 46. Qxd3 Qxd3+ 47. Kc1 Re8 48. Ra3 Qxf1+ 49. Kc2 Qf2+ 50. Kb3 Re3+ 51. Kb4 Qe1+ 52. Rc3 Qxc3#) 43. Kb1 Qxf1+ 44. Kb2 Qe2+ 45. Kc1 Rd1#) 41... Rf8 $2 {[%emt 0:04:57][%mdl 8192]} (41... Rxg3 $16 {is more resistant.} 42. Raf1 Qxd4 43. Rxd4 Rd8) 42. Qxe5+ $18 {[%emt 0:01:03]} dxe5 {[%emt 0:00:19]} 43. Rxf8 {[%emt 0:01:23]} Kxf8 {[%emt 0:00:02]} 44. c5 {[%emt 0:02:35]} Rxd3+ {[%emt 0:00:35]} 45. Kc2 {[%emt 0:00:06]} Rd5 {[%emt 0:05:11]} (45... Rf3 $142 46. cxb6 Ke7) 46. cxb6 $18 {[%emt 0:00:45]} Ke7 {[%emt 0:00:03]} 47. Rd1 {[%emt 0:02:35]} Rc5+ {[%emt 0:05:51]} 48. Kb3 {[%emt 0:00:31]} Ke6 {[%emt 0:00:22]} 49. Kb4 {[%emt 0:02:46]} Rc2 {[%emt 0:00:07]} 50. a5 {[%emt 0:00:05]} Ra2 {[%emt 0:00:09]} 51. Rd8 {[%emt 0:01:36]} e4 {[%emt 0:00:05]} 52. a6 {[%emt 0:00:27]} 1-0

[Event "Chinese League Division-A 2024"]
[Site "Fuling Chongqing"]
[Date "2024.07.03"]
[Round "7.7"]
[White "Xiao, Tong"]
[Black "Zhao, Jun"]
[Result "1/2-1/2"]
[ECO "C67"]
[WhiteElo "2518"]
[BlackElo "2538"]
[Annotator "TA"]
[PlyCount "65"]
[EventDate "2024.06.28"]
[EventType "team-tourn"]
[EventCountry "CHN"]
[SourceTitle "playchess.com"]
[Source "ChessBase"]
[SourceQuality "1"]
[TimeControl "40/5400+30:1800+30"]

{[%evp 16,65,17,-7,-9,0,-10,0,0,0,0,0,0,0,0,2,14,19,20,0,7,9,16,0,1,0,0,0,0,0,0,0,0,0,0,0,0,-2,-6,-12,-4,-12,-14,0,-13,-7,0,0,0,-7,0,0]} 1. e4 {[%emt 0:00:03]} e5 {[%emt 0:00:15]} 2. Nf3 {[%emt 0:00:04]} Nc6 {[%emt 0:00:09]} 3. Bb5 {[%emt 0:00:04]} Nf6 {[%emt 0:00:58][%cal Bg8f6,Bf6e4,Be4d6,Bd6f5][%mdl 32]} 4. O-O {[%emt 0:01:41]} Nxe4 {[%emt 0:00:34]} 5. d4 {[%emt 0:00:04]} Nd6 {[%emt 0:00:18]} 6. Bxc6 {[%emt 0:00:04]} dxc6 {[%emt 0:00:07]} 7. dxe5 {[%emt 0:00:03]} Nf5 {[%emt 0:00:07]} 8. Qxd8+ {[%emt 0:00:04]} Kxd8 {[%emt 0:00:07]} 9. h3 {[%emt 0:02:29] The position is equal.} Bd7 {[%emt 0:04:43]} 10. Rd1 {[%emt 0:00:08]} Be7 {[%emt 0:03:32]} 11. g4 {[%emt 0:02:02]} Nh4 {[%emt 0:00:19]} 12. Nxh4 {[%emt 0:00:12]} Bxh4 {[%emt 0:00:06]} 13. Nd2 {[%emt 0:00:07]} Kc8 {[%emt 0:01:58]} 14. Nf3 {[%emt 0:03:26]} Bd8 {[%emt 0:01:49]} 15. Bg5 {[%emt 0:05:35] Black is weak on the dark squares} f6 {[%emt 0:00:59]} 16. exf6 {[%emt 0:02:17]} gxf6 {[%emt 0:00:08]} 17. Bh6 {[%emt 0:00:02]} a5 {[%emt 0:03:26]} 18. Rd2 {[%emt 0:04:24]} c5 {[%emt 0:03:45]} 19. Rad1 {[%emt 0:11:06]} Be6 {[%emt 0:01:48][%cal Oh8g8]} 20. a3 {[%emt 0:02:21]} Ra6 {[%emt 0:01:16]} 21. Kh2 {[%emt 0:02:48]} Rb6 {[%emt 0:03:51][%cal Oh8e8]} 22. Re1 {[%emt 0:03:52]} Bd7 {[%emt 0:05:47]} 23. c3 {[%emt 0:01:28]} a4 {[%emt 0:05:45]} 24. Kg3 {[%emt 0:04:08]} Rg8 {[%emt 0:04:44]} 25. Kf4 {[%emt 0:01:39]} Rd6 {[%emt 0:08:36]} 26. Red1 {[%emt 0:09:04]} Rxd2 {[%emt 0:03:31]} 27. Rxd2 {[%emt 0:00:58]} Be7 {[%emt 0:00:11]} 28. Nh4 {[%emt 0:00:40] Against Rg6} Bd6+ {[%emt 0:00:35]} 29. Kf3 {[%emt 0:00:19]} Bc6+ {[%emt 0:00:55]} 30. Ke2 {[%emt 0:00:07]} Bb5+ {[%emt 0:00:36] A strong pair of Bishops.} 31. Kf3 {[%emt 0:00:31]} Bc6+ {[%emt 0:00:07]} 32. Ke2 {[%emt 0:00:06]} Bb5+ {[%emt 0:00:07]} 33. Kf3 {[%emt 0:00:45] An uneventful encounter.   Weighted Error Value: White=0.02 (flawless) /Black=0.01 (flawless) .  OK:         	White=13    	Black=15     Best:        	White=4     	---} 1/2-1/2

[Event "Chinese League Division-A 2024"]
[Site "Fuling Chongqing"]
[Date "2024.07.03"]
[Round "7.8"]
[White "Zhou, Weiqi"]
[Black "Liu, Qingnan"]
[Result "1/2-1/2"]
[ECO "A13"]
[WhiteElo "2599"]
[BlackElo "2540"]
[Annotator "TA"]
[PlyCount "90"]
[EventDate "2024.06.28"]
[EventType "team-tourn"]
[EventCountry "CHN"]
[SourceTitle "playchess.com"]
[Source "ChessBase"]
[SourceQuality "1"]
[TimeControl "40/5400+30:1800+30"]

{[%evp 19,90,0,5,-32,-34,-36,-32,-70,-27,-30,-33,-43,-26,-68,-52,-56,-54,-60,-67,-73,-62,-88,-61,-57,-56,-72,-61,-64,-47,-47,0,-13,0,-27,0,0,2,0,0,0,13,0,0,0,0,0,0,0,0,0,0,0,0,0,0,0,0,0,0,0,0,0,0,0,0,0,0,0,0,0,0,0,0]} 1. Nf3 {[%emt 0:00:03]} Nf6 {[%emt 0:00:08]} 2. c4 {[%emt 0:00:08]} e6 {[%emt 0:00:04]} 3. g3 {[%emt 0:00:21]} d5 {[%emt 0:00:08]} 4. Bg2 {[%emt 0:00:12]} dxc4 {[%emt 0:01:27]} 5. Qa4+ {[%emt 0:01:57]} Nbd7 {[%emt 0:01:29]} 6. Qxc4 {[%emt 0:02:05]} a6 {[%emt 0:00:16]} 7. Qc2 {[%emt 0:01:33]} c5 {[%emt 0:00:11]} 8. O-O {[%emt 0:01:55]} b5 {[%emt 0:04:25]} 9. a4 {[%emt 0:01:28]} Bb7 {[%emt 0:01:23]} 10. d3 {[%emt 0:05:02]} Be7 {[%emt 0:01:45]} 11. Na3 {[%emt 0:08:36]} O-O {[%emt 0:03:08]} 12. axb5 {[%emt 0:05:16]} axb5 {[%emt 0:00:47] [#] And now ...b4 would win.} 13. Bf4 {[%emt 0:00:05] Black is slightly better.} Nd5 {[%emt 0:03:00]} (13... Qb6 {is more complex.} 14. e4 c4 15. e5 Ng4) 14. Bd2 $1 {[%emt 0:02:39]} Qb6 {[%emt 0:03:18]} 15. Qb3 {[%emt 0:00:20]} Nb4 {[%emt 0:10:30]} 16. Ne1 {[%emt 0:09:31]} Bxg2 {[%emt 0:02:34]} 17. Nxg2 {[%emt 0:00:33]} Ne5 {[%emt 0:00:22]} 18. Be3 {[%emt 0:06:45]} Qb7 {[%emt 0:06:43]} 19. Rfc1 {[%emt 0:04:47]} Rfc8 {[%emt 0:01:09][%cal Oc5c4]} 20. Rab1 {[%emt 0:14:16]} Rc6 {[%emt 0:04:01]} 21. Bf4 {[%emt 0:00:58]} Nd7 {[%emt 0:03:05]} 22. Ne1 {[%emt 0:02:14]} Rb6 {[%emt 0:03:55]} 23. Bd2 {[%emt 0:09:03]} Nd5 {[%emt 0:09:58][%cal Oc5c4] ...c4! would now be deadly.} 24. Qd1 {[%emt 0:00:09]} Bf6 {[%emt 0:04:59][%cal Of6b2]} 25. e4 {[%emt 0:00:07]} Ne7 {[%emt 0:01:53]} 26. Be3 {[%emt 0:03:21]} Bxb2 {[%emt 0:09:05]} 27. Rxb2 {[%emt 0:00:02] The position is equal.} Rxa3 {[%emt 0:00:02]} 28. Bxc5 {[%emt 0:00:01]} Nxc5 {[%emt 0:00:10]} 29. Rxc5 {[%emt 0:00:02]} b4 {[%emt 0:00:46]} 30. Qc1 {[%emt 0:03:29]} Rc6 {[%emt 0:06:11]} 31. Qc4 {[%emt 0:05:13]} Rxc5 $1 {[%emt 0:00:00]} 32. Qxc5 {[%emt 0:00:01]} Nc6 {[%emt 0:00:00]} 33. Nc2 {[%emt 0:00:03][%csl LRa3,LRb4] Prevents Ra1+.} Ra5 {[%emt 0:00:25]} ({But not} 33... Rc3 $2 34. Qxc3 bxc3 35. Rxb7 $18) 34. Qd6 {[%emt 0:00:43]} h6 {[%emt 0:03:15]} 35. Nd4 {[%emt 0:00:45]} Ra1+ {[%emt 0:02:47]} 36. Kg2 {[%emt 0:00:02]} Nxd4 {[%emt 0:00:53]} 37. Qxd4 $11 {[%emt 0:00:04][%mdl 4096] Endgame. KQR-KQR} Ra4 {[%emt 0:00:48]} 38. Qc4 {[%emt 0:04:00]} Kh7 {[%emt 0:01:42]} 39. h4 {[%emt 0:00:26]} h5 {[%emt 0:05:08]} 40. Rb3 {[%emt 0:00:00]} e5 {[%emt 0:00:00]} 41. Rb2 {[%emt 0:01:42]} f6 {[%emt 0:04:39]} 42. Kh2 {[%emt 0:06:52]} Qa7 {[%emt 0:03:28]} 43. Kg2 {[%emt 0:00:07]} Qb7 {[%emt 0:01:08]} 44. Kh2 {[%emt 0:00:47]} Qa7 {[%emt 0:01:11]} 45. Kg2 {[%emt 0:00:05]} Qb7 {[%emt 0:01:37] Weighted Error Value: White=0.07 (flawless) /Black=0.07 (flawless) .  Inaccurate:     	White=4     	Black=4      OK:         	White=14    	Black=11     Best:        	White=1     	---        Strong:       	White=1     	Black=1} 1/2-1/2

[Event "Chinese League Division-A 2024"]
[Site "Fuling Chongqing"]
[Date "2024.07.03"]
[Round "7.9"]
[White "Zhang, Xiao"]
[Black "Song, Yuxin"]
[Result "1/2-1/2"]
[ECO "E43"]
[WhiteElo "2193"]
[BlackElo "2383"]
[Annotator "TA"]
[PlyCount "129"]
[EventDate "2024.06.28"]
[EventType "team-tourn"]
[EventCountry "CHN"]
[SourceTitle "playchess.com"]
[Source "ChessBase"]
[SourceQuality "1"]
[TimeControl "40/5400+30:1800+30"]

{[%evp 22,129,39,14,31,33,27,12,54,27,25,26,40,41,41,30,44,48,43,35,41,9,42,0,2,-17,40,35,39,10,29,0,9,-158,-20,-96,-14,-89,-93,-111,-117,-412,-412,-861,-164,-164,-175,-232,-158,-237,-178,-192,-230,-222,-145,-131,-134,-158,-145,-139,-130,-134,-136,-139,-139,-141,-116,-149,-151,-157,-151,-139,-131,-129,-124,-122,-137,-116,-108,-108,-108,-108,-100,-100,-99,-107,-107,-107,-107,-107,-107,-137,-135,-102,-8,-8,272,265,236,0,7,0,0,0,0,0,0,0,141,0]} 1. d4 {[%emt 0:00:03]} Nf6 {[%emt 0:00:06]} 2. c4 {[%emt 0:00:17]} e6 {[%emt 0:00:06]} 3. Nc3 {[%emt 0:00:05]} Bb4 {[%emt 0:00:08]} 4. e3 {[%emt 0:00:08]} O-O {[%emt 0:00:10]} 5. Nf3 {[%emt 0:00:08]} b6 {[%emt 0:04:33]} 6. Bd3 {[%emt 0:00:27]} Bb7 {[%emt 0:00:11]} 7. O-O {[%emt 0:01:32]} c5 {[%emt 0:00:14]} 8. Na4 {[%emt 0:00:21]} cxd4 {[%emt 0:02:50]} 9. exd4 {[%emt 0:00:05]} Be7 {[%emt 0:04:22]} 10. a3 {[%emt 0:02:19]} d6 {[%emt 0:03:34]} 11. b4 {[%emt 0:01:38]} Nbd7 {[%emt 0:00:12][%cal Bb8d7,Bd7f8,Bf8g6][%mdl 32]} 12. Re1 {[%emt 0:01:56]} Rc8 {[%emt 0:01:14]} 13. Nc3 {[%emt 0:01:16]} Re8 {[%emt 0:02:40]} 14. Bb2 {[%emt 0:09:45]} Nf8 {[%emt 0:05:06] The position is equal.} 15. Rc1 {[%emt 0:20:05]} Ng6 {[%emt 0:00:27]} 16. Bf1 {[%emt 0:00:17]} Rc7 {[%emt 0:08:54]} 17. Nb5 {[%emt 0:10:56]} Rd7 {[%emt 0:00:22]} 18. g3 {[%emt 0:06:07]} (18. Nxa7 $2 Bxf3 19. Qxf3 Rxa7 $19) 18... Qa8 {[%emt 0:08:43]} 19. Nd2 {[%emt 0:05:00][%cal Od4d5]} a6 {[%emt 0:08:42]} 20. Nc3 {[%emt 0:00:06]} Rc7 {[%emt 0:01:09]} 21. f3 {[%emt 0:05:36][%cal Bf2f3,Bf3f4][%mdl 32]} Qa7 {[%emt 0:08:48]} 22. Nde4 {[%emt 0:03:13]} Rec8 {[%emt 0:11:32]} 23. h4 {[%emt 0:12:23]} Nh5 {[%emt 0:08:07]} ({Black should play} 23... d5 $11 24. Nxf6+ Bxf6) 24. f4 $1 $14 {[%emt 0:03:58]} Nf6 {[%emt 0:06:49]} 25. Nxf6+ {[%emt 0:00:17]} Bxf6 {[%emt 0:00:01]} 26. Kh2 {[%emt 0:00:10]} Ne7 {[%emt 0:02:01]} 27. Nb1 $2 {[%emt 0:07:27]} (27. b5 $1 $11) 27... Qa8 {[%emt 0:00:36]} (27... b5 $1 $17 {...Nf5 would now be deadly.} 28. c5 dxc5 29. Rxc5 Rxc5 30. bxc5 Rd8) 28. Qd3 {[%emt 0:00:34]} (28. Qd2 $11) 28... Bc6 {[%emt 0:02:34]} (28... b5 $17 29. cxb5 Rxc1 30. Rxc1 Rxc1 31. Bxc1 Be4) 29. Bh3 {[%emt 0:01:58]} (29. Nc3 $11) 29... b5 $36 {[%emt 0:02:47][%mdl 2048] Black has strong initiative.} 30. c5 {[%emt 0:01:26]} dxc5 {[%emt 0:00:01]} 31. Rc3 {[%emt 0:01:34][%mdl 8192]} (31. Rxc5 $17 Rd8 32. Nd2) 31... c4 $19 (31... cxd4 32. Rc5 $19) 32. Rxc4 {[%emt 0:00:31]} (32. Qf1 $142) 32... Rd8 $2 {[%emt 0:01:11]} (32... bxc4 33. Qc2 c3 34. Nxc3 Bxd4) 33. Rc5 {[%emt 0:03:02]} Rcd7 {[%emt 0:00:45][%cal Rf6d4]} 34. Qe3 {[%emt 0:00:28]} (34. Qc2 $142) 34... Bf3 {[%emt 0:01:09][%cal Rf6d4]} 35. Rf1 {[%emt 0:01:29]} (35. Rc2 $17 {keeps fighting.}) 35... Be4 {[%emt 0:00:01][%cal Rd7d4]} (35... Bxd4 $2 36. Bxd4 (36. Qxf3 $2 Qxf3 37. Rxf3 Bxc5 $19) 36... Bb7 37. Bb2 $18) 36. Nc3 {[%emt 0:01:19]} Bxd4 {[%emt 0:00:26]} 37. Qxe4 {[%emt 0:00:08]} Bxc5 {[%emt 0:00:05]} 38. Qxa8 {[%emt 0:00:36]} Rxa8 {[%emt 0:00:01]} 39. Bg2 {[%emt 0:00:25]} Rd2 {[%emt 0:01:30]} 40. Bc1 {[%emt 0:00:06] [#]} Rxg2+ {[%emt 0:00:23]} 41. Kxg2 {[%emt 0:00:01]} Bb6 {[%emt 0:04:01]} 42. Rd1 {[%emt 0:05:08]} Rc8 {[%emt 0:00:59]} 43. Rd3 {[%emt 0:02:57]} Nf5 {[%emt 0:03:24]} 44. Bd2 {[%emt 0:01:30]} h5 {[%emt 0:09:58]} 45. a4 {[%emt 0:04:11]} bxa4 {[%emt 0:01:11]} 46. Nxa4 {[%emt 0:00:02]} Bd4 {[%emt 0:00:17]} 47. Nc3 {[%emt 0:02:27]} Rc4 {[%emt 0:04:46]} 48. Ne4 {[%emt 0:01:40]} f6 {[%emt 0:00:55]} 49. Kf3 {[%emt 0:00:40]} Kf7 {[%emt 0:01:41]} 50. Ra3 {[%emt 0:00:38]} Rc6 {[%emt 0:00:32]} 51. Ra5 {[%emt 0:02:24]} Rb6 {[%emt 0:03:59]} 52. Be1 {[%emt 0:01:06]} Kg6 {[%emt 0:00:43]} 53. Nc5 {[%emt 0:02:10]} Bxc5 {[%emt 0:00:13]} 54. bxc5 $17 {[%emt 0:00:20][%cal Bb4c5,Bc5c6,Bc6c7][%mdl 4128] Endgame. KRB-KRN} Rb3+ {[%emt 0:01:38]} 55. Kg2 {[%emt 0:01:09] [#]} Rb2+ $1 {[%emt 0:01:06]} 56. Bf2 {[%emt 0:01:51][%cal Og2f3]} Ne3+ {[%emt 0:00:41]} 57. Kf3 {[%emt 0:01:28]} Ng4 {[%emt 0:00:46]} (57... Nc4 $17 58. Ra1 (58. Rxa6 $2 {loses.} Nd2+ 59. Ke3 Nf1+ 60. Kf3 Nh2+ 61. Ke3 Ng4+ 62. Kd4 Rxf2 $19) 58... Rc2) 58. Bg1 $11 {[%emt 0:00:42][%cal Oc5c6]} Kf5 $2 {[%emt 0:01:21][%mdl 8192]} (58... Rc2 $11 59. Ke4 Kf7) 59. c6+ $18 {[%emt 0:03:21]} e5 {[%emt 0:00:00][%cal Be6e5,Be5e4,Be4e3][%mdl 32]} 60. Rc5 {[%emt 0:00:28] Repels Rc2} ({White must play} 60. c7 $1 $18 {[%cal Rc7c8]} Rc2 61. Bb6) 60... Rb8 {[%emt 0:00:33]} 61. c7 {[%emt 0:02:42]} Rc8 {[%emt 0:00:02]} 62. Rc6 {[%emt 0:00:06]} e4+ {[%emt 0:00:39]} 63. Ke2 {[%emt 0:00:42]} e3 $1 {[%emt 0:00:24]} 64. Kf3 {[%emt 0:01:51]} Nf2 {[%emt 0:02:01]} 65. Rc5+ {[%emt 0:02:26] Weighted Error Value: White=0.44/Black=0.42.  Loses game:     	White=1     	Black=1      Missed win:     	White=1     	---        Mistake:       	White=7     	Black=6      Inaccurate:     	White=5     	Black=4      OK:         	White=12    	Black=18     Best:        	White=4     	Black=4      Strong:       	White=1     	Black=2} ({Resist} 65. Rxa6 $6 Rxc7 66. Ra5+ Kg6 $11) (65. Kxe3 $16 Ne4 66. Kf3 (66. Rxa6 Rxc7 67. Ra5+ Rc5 $11)) 1/2-1/2

[Event "Chinese League Division-A 2024"]
[Site "Fuling Chongqing"]
[Date "2024.07.03"]
[Round "7.10"]
[White "Li, Xueyi"]
[Black "Hu, Yu A."]
[Result "1-0"]
[ECO "E04"]
[WhiteElo "2209"]
[BlackElo "2127"]
[Annotator "RC"]
[PlyCount "65"]
[EventDate "2024.06.28"]
[EventType "team-tourn"]
[EventCountry "CHN"]
[SourceTitle "playchess.com"]
[Source "ChessBase"]
[SourceQuality "1"]
[TimeControl "40/5400+30:1800+30"]

1. d4 {[%emt 0:00:03]} d5 {[%emt 0:01:38]} 2. c4 {[%emt 0:00:11]} e6 {[%emt 0:00:26]} 3. Nf3 {[%emt 0:00:08]} Nf6 {[%emt 0:00:34]} 4. g3 {[%emt 0:00:07]} dxc4 {[%emt 0:07:19]} 5. Bg2 {[%emt 0:02:52]} a6 {[%emt 0:06:59]} 6. O-O {[%emt 0:00:22]} Nc6 {[%emt 0:00:27]} 7. a4 {[%emt 0:01:20]} Rb8 {[%emt 0:03:58]} 8. a5 {[%emt 0:00:35]} Be7 {[%emt 0:05:15]} 9. Qa4 {[%emt 0:01:56]} O-O {[%emt 0:00:27]} 10. Qxc4 {[%emt 0:00:20]} Bd7 {[%emt 0:08:26]} 11. Nc3 {[%emt 0:09:05]} Bb4 {[%emt 0:12:07]} 12. Ne5 {[%emt 0:08:03]} Nxe5 {[%emt 0:01:47]} 13. Qxb4 {[%emt 0:02:19]} Nc6 {[%emt 0:00:05]} 14. Qc4 {[%emt 0:01:03]} b5 {[%emt 0:12:07]} 15. axb6 {[%emt 0:06:10]} Rxb6 {[%emt 0:00:05]} 16. Rxa6 {[%emt 0:15:25]} Rxa6 {[%emt 0:00:41]} 17. Qxa6 {[%emt 0:01:46]} Nxd4 {[%emt 0:00:05]} 18. Bg5 {[%emt 0:07:12]} Qc8 {[%emt 0:29:14]} 19. Qc4 {[%emt 0:12:05]} e5 {[%emt 0:03:57]} 20. Bxf6 {[%emt 0:00:11]} gxf6 {[%emt 0:00:04]} 21. e3 {[%emt 0:05:11]} Be6 {[%emt 0:01:04]} 22. Nd5 {[%emt 0:01:26]} Bxd5 {[%emt 0:01:25]} 23. Bxd5 {[%emt 0:00:08]} Ne6 {[%emt 0:00:34]} 24. Rc1 {[%emt 0:01:19]} Rd8 {[%emt 0:00:38]} 25. h4 {[%emt 0:02:04]} Rd6 {[%emt 0:01:40]} 26. Qg4+ {[%emt 0:06:09]} Kh8 {[%emt 0:00:31]} 27. Bxe6 {[%emt 0:00:43]} fxe6 {[%emt 0:00:26]} 28. h5 {[%emt 0:00:16]} Qd8 {[%emt 0:01:04]} 29. h6 {[%emt 0:00:17]} Qe7 {[%emt 0:00:04]} 30. Qb4 {[%emt 0:02:08]} Qd8 {[%emt 0:01:29]} 31. Qg4 {[%emt 0:01:52]} Qe7 {[%emt 0:00:01]} 32. Qc4 {[%emt 0:00:49]} c6 {[%emt 0:01:19]} 33. Qa6 {[%emt 0:00:54]} 1-0